bitfinex-derivatives/quotes_BTCF0:USTF0_20250710
["timestamp","ask_amount","ask_price","bid_price","bid_amount"]
[1752170487992,0.30259321,113700.0,113690.0,0.6416608]
[1752170488185,0.30259321,113700.0,113690.0,0.90470612]
[1752170488588,0.30259321,113700.0,113690.0,0.54390612]
[1752170488990,0.30259321,113700.0,113690.0,0.52192612]
[1752170489187,0.30259321,113700.0,113690.0,0.2588808]
[1752170489687,0.56563853,113700.0,113690.0,0.05196]
[1752170489887,0.92643853,113700.0,113690.0,0.05196]
[1752170490089,0.56563853,113700.0,113690.0,0.05196]
[1752170490294,1.18948385,113700.0,113690.0,0.05196]
[1752170490492,0.92643853,113700.0,113690.0,0.05196]
[1752170491387,1.23691448,113700.0,113690.0,0.05196]
[1752170491599,0.47878612,113690.0,113680.0,0.00175925]
[1752170491891,1.55185404,113690.0,113680.0,0.00175925]
[1752170492887,1.28880872,113690.0,113680.0,0.00275925]
[1752170493479,1.28880872,113690.0,113680.0,0.17859545]
[1752170493897,1.29006445,113690.0,113680.0,0.00275925]
[1752170494087,0.92926445,113690.0,113680.0,0.00275925]
[1752170494292,1.29006445,113690.0,113680.0,0.00275925]
[1752170496393,1.70138457,113690.0,113680.0,0.00275925]
[1752170496990,1.29006445,113690.0,113680.0,0.00275925]
[1752170499492,0.66222445,113690.0,113680.0,0.00275925]
[1752170499692,1.29006445,113690.0,113680.0,0.00275925]
[1752170500594,0.66222445,113690.0,113680.0,0.00275925]
[1752170500794,0.26992445,113690.0,113680.0,0.9693514]
[1752170500995,0.23804444,113690.0,113680.0,1.0322514]
[1752170501688,0.06222364,113690.0,113680.0,1.0322514]
[1752170501893,0.23804444,113690.0,113680.0,1.6600514]
[1752170503803,0.23804444,113690.0,113680.0,1.24873128]
[1752170504002,0.23804444,113690.0,113680.0,1.6600514]
[1752170506299,0.23804444,113690.0,113680.0,1.24873128]
[1752170507006,0.23804444,113690.0,113680.0,0.44509498]
[1752170507207,0.23804444,113690.0,113680.0,1.24869128]
[1752170507398,0.27114444,113690.0,113680.0,1.24869128]
[1752170507600,0.2488408,113690.0,113680.0,1.24869128]
[1752170507798,0.27045583,113690.0,113680.0,0.44509498]
[1752170508006,0.27045583,113690.0,113680.0,1.24869128]
[1752170509098,0.27045583,113690.0,113680.0,1.6600114]
[1752170509299,0.31788646,113690.0,113680.0,1.24869128]
[1752170509506,0.27045583,113690.0,113680.0,1.23005555]
[1752170510201,0.31788646,113690.0,113680.0,1.23005555]
[1752170511005,0.31872646,113690.0,113680.0,1.23005555]
[1752170513004,0.32172646,113690.0,113680.0,1.23005555]
[1752170513599,0.35472646,113690.0,113680.0,0.42645925]
[1752170513804,0.35472646,113690.0,113680.0,1.19867555]
[1752170514508,0.35472646,113690.0,113680.0,0.57099555]
[1752170514700,0.35472646,113690.0,113680.0,1.19867555]
[1752170515207,0.30829583,113690.0,113680.0,1.16607555]
[1752170515603,0.30829583,113690.0,113680.0,0.00175925]
[1752170515903,0.71652646,113690.0,113680.0,0.80523555]
[1752170516407,0.28962646,113690.0,113680.0,1.42926525]
[1752170516705,0.28962646,113690.0,113680.0,1.49106525]
[1752170516706,0.04906503,113690.0,113680.0,1.49106525]
[1752170516909,0.04743063,113700.0,113690.0,0.1758209]
[1752170517207,0.1758054,113700.0,113690.0,0.8616506]
[1752170517404,0.02345,113700.0,113690.0,0.8616506]
[1752170518305,0.1992554,113700.0,113690.0,0.8616506]
[1752170518807,0.1992554,113700.0,113690.0,1.00949942]
[1752170519009,0.1992554,113700.0,113690.0,1.00849942]
[1752170519307,0.24688513,113720.0,113710.0,0.1757899]
[1752170519512,0.1757745,113720.0,113710.0,2.20290842]
[1752170519714,0.2150545,113720.0,113710.0,1.8563299]
[1752170520710,0.2160545,113720.0,113710.0,2.26740842]
[1752170521506,0.2004545,113720.0,113710.0,2.27625657]
[1752170521708,0.2004545,113720.0,113710.0,2.63705657]
[1752170522117,0.1994545,113720.0,113710.0,2.63805657]
[1752170522814,0.1994545,113720.0,113710.0,2.64005657]
[1752170523406,0.2150545,113720.0,113710.0,2.64005657]
[1752170523806,0.1994545,113720.0,113710.0,2.22897805]
[1752170524110,0.1994545,113720.0,113710.0,2.64005657]
[1752170524710,0.02368,113720.0,113710.0,2.64005657]
[1752170524913,0.3029243,113730.0,113720.0,0.1757745]
[1752170525111,0.3037643,113730.0,113720.0,1.01135302]
[1752170525611,0.3037643,113730.0,113720.0,0.494423]
[1752170525806,0.3037643,113730.0,113720.0,0.697363]
[1752170525807,0.3673643,113730.0,113720.0,0.697363]
[1752170526114,0.2150545,113720.0,113710.0,0.002]
[1752170526313,1.05053302,113720.0,113710.0,0.002]
[1752170526510,0.1913899,113710.0,113700.0,1.0963443]
[1752170526712,0.2786699,113710.0,113700.0,1.0963443]
[1752170527108,0.2786699,113710.0,113700.0,1.10511977]
[1752170527313,0.2150699,113710.0,113700.0,1.90859829]
[1752170527513,0.2150699,113710.0,113700.0,1.93919829]
[1752170528412,0.2150699,113710.0,113700.0,1.64609829]
[1752170528611,0.2150699,113710.0,113700.0,1.65009829]
[1752170528812,0.2452699,113710.0,113700.0,1.65009829]
[1752170529017,0.26652783,113710.0,113700.0,1.02565829]
[1752170529215,0.26652783,113710.0,113700.0,0.63444]
[1752170529417,0.29872783,113710.0,113700.0,0.8102454]
[1752170530116,0.29872783,113710.0,113700.0,0.5436054]
[1752170530320,0.29872783,113710.0,113700.0,1.58212392]
[1752170530521,0.29872783,113710.0,113700.0,1.64312392]
[1752170530811,0.29872783,113710.0,113700.0,1.65210201]
[1752170531012,0.29872783,113710.0,113700.0,1.24102349]
[1752170531217,0.29872783,113710.0,113700.0,1.65210201]
[1752170531419,0.29872783,113710.0,113700.0,1.64312392]
[1752170531617,0.29872783,113710.0,113700.0,0.8102454]
[1752170531818,0.29872783,113710.0,113700.0,0.6344]
[1752170532521,0.29956783,113710.0,113700.0,0.6344]
[1752170532722,0.29956783,113710.0,113700.0,0.8102053]
[1752170532909,0.29956783,113710.0,113700.0,0.81885481]
[1752170533214,0.29956783,113710.0,113700.0,1.17965481]
[1752170534227,0.29956783,113710.0,113700.0,0.8102053]
[1752170535222,0.29956783,113710.0,113700.0,0.6344]
[1752170535420,0.29956783,113710.0,113700.0,0.8102053]
[1752170535622,0.29956783,113710.0,113700.0,0.6344]
[1752170535821,0.30819267,113710.0,113700.0,0.007]
[1752170536324,0.1914208,113690.0,113680.0,0.74575467]
[1752170536527,0.23635873,113690.0,113680.0,0.9786394]
[1752170536719,0.23635873,113690.0,113680.0,0.3512794]
[1752170536921,0.26835873,113690.0,113680.0,0.9786394]
[1752170537427,0.26835873,113690.0,113680.0,1.75551792]
[1752170537823,0.26835873,113690.0,113680.0,1.77750792]
[1752170538314,0.26835873,113690.0,113680.0,1.78250792]
[1752170539127,0.26835873,113690.0,113680.0,0.2078263]
[1752170539321,0.29995873,113690.0,113680.0,0.8351863]
[1752170539523,0.29995873,113690.0,113680.0,0.66836157]
[1752170539820,0.23635873,113690.0,113680.0,1.61107639]
[1752170540018,0.22075873,113690.0,113680.0,1.67337639]
[1752170540222,0.23635873,113690.0,113680.0,1.67337639]
[1752170540921,0.23635873,113690.0,113680.0,1.49754009]
[1752170541128,0.23635873,113690.0,113680.0,1.67337639]
[1752170541428,0.26755873,113690.0,113680.0,1.67337639]
[1752170541625,0.26755873,113690.0,113680.0,1.26229787]
[1752170541818,0.26755873,113690.0,113680.0,1.67337639]
[1752170542221,0.26755873,113690.0,113680.0,1.66837639]
[1752170542423,0.26755873,113690.0,113680.0,1.67037639]
[1752170542918,0.26755873,113690.0,113680.0,1.25729787]
[1752170543228,0.26755873,113690.0,113680.0,1.67037639]
[1752170543429,0.26755873,113690.0,113680.0,1.04301639]
[1752170543622,0.26755873,113690.0,113680.0,1.2502863]
[1752170543822,0.29785873,113690.0,113680.0,0.38479]
[1752170544029,0.65949873,113690.0,113680.0,0.65135]
[1752170544232,0.65949873,113690.0,113680.0,0.02399]
[1752170544419,0.65949873,113690.0,113680.0,0.65135]
[1752170544821,0.29869873,113690.0,113680.0,0.65135]
[1752170545026,0.92276349,113690.0,113680.0,0.02399]
[1752170545832,0.65949873,113690.0,113680.0,0.02399]
[1752170546132,0.65949873,113690.0,113680.0,0.46309106]
[1752170546325,0.29869873,113690.0,113680.0,0.46309106]
[1752170546725,0.29869873,113690.0,113680.0,0.5606263]
[1752170546925,0.29869873,113690.0,113680.0,0.97186311]
[1752170548018,0.26839873,113690.0,113680.0,0.97186311]
[1752170548222,0.22075873,113690.0,113680.0,1.00366311]
[1752170548423,0.23627873,113690.0,113680.0,1.03536311]
[1752170548819,0.23627873,113690.0,113680.0,0.6241263]
[1752170549032,0.23627873,113690.0,113680.0,1.03536311]
[1752170551634,0.23627873,113690.0,113680.0,0.6241263]
[1752170551835,0.23627873,113690.0,113680.0,1.03536311]
[1752170552929,0.22075873,113690.0,113680.0,1.03536311]
[1752170556940,0.23627873,113690.0,113680.0,0.6241263]
[1752170557241,0.23627873,113690.0,113680.0,1.03536311]
[1752170557931,0.23627873,113690.0,113680.0,0.08749]
[1752170558133,0.68071554,113690.0,113680.0,0.02399]
[1752170558336,1.07355554,113690.0,113680.0,0.02399]
[1752170559234,1.07455554,113690.0,113680.0,0.02199]
[1752170559538,0.71274936,113690.0,113680.0,0.02199]
[1752170559840,0.78365969,113690.0,113680.0,0.02199]
[1752170560640,0.78379845,113690.0,113680.0,0.02199]
[1752170561137,1.14760463,113690.0,113680.0,0.02199]
[1752170561641,0.2163167,113680.0,113670.0,0.0017594]
[1752170561828,1.1204498,113680.0,113670.0,0.0017594]
[1752170562028,0.71005299,113680.0,113670.0,0.1931915]
[1752170562434,0.66265339,113680.0,113670.0,0.1931915]
[1752170562834,0.66665339,113680.0,113670.0,0.1931915]
[1752170563239,1.29389339,113680.0,113670.0,0.1931915]
[1752170563632,1.29389339,113680.0,113670.0,0.0173394]
[1752170563827,1.29389339,113680.0,113670.0,0.0017594]
[1752170564032,1.7071302,113680.0,113670.0,0.0017594]
[1752170565341,1.29585339,113680.0,113670.0,0.0173394]
[1752170565732,0.66865339,113680.0,113670.0,0.0173394]
[1752170565929,0.63605339,113680.0,113670.0,0.62614841]
[1752170566135,0.29192348,113680.0,113670.0,1.33489446]
[1752170566449,0.20324431,113680.0,113670.0,1.69569446]
[1752170567335,0.20124431,113680.0,113670.0,1.69569446]
[1752170567534,0.20124431,113680.0,113670.0,1.69669446]
[1752170567736,0.19724431,113680.0,113670.0,1.69669446]
[1752170568136,0.02140761,113680.0,113670.0,1.69669446]
[1752170568342,0.19724431,113680.0,113670.0,1.76748617]
[1752170568740,0.02140761,113680.0,113670.0,1.76748617]
[1752170568942,0.02140761,113680.0,113670.0,1.88255036]
[1752170569343,0.19724431,113680.0,113670.0,1.88255036]
[1752170569536,0.02140761,113680.0,113670.0,1.88255036]
[1752170570645,0.19724431,113680.0,113670.0,1.88255036]
[1752170571344,0.02140761,113680.0,113670.0,1.88255036]
[1752170572445,0.02140761,113680.0,113670.0,1.88555036]
[1752170573935,0.07233009,113700.0,113690.0,0.1766312]
[1752170574136,0.2007658,113700.0,113690.0,1.4276617]
[1752170574350,0.2007658,113700.0,113690.0,1.4902617]
[1752170575041,0.2017658,113700.0,113690.0,1.4902617]
[1752170575951,0.2018058,113700.0,113690.0,1.4902617]
[1752170576148,0.2028058,113700.0,113690.0,1.4902617]
[1752170576750,0.027,113700.0,113690.0,1.4902617]
[1752170577051,0.2028054,113700.0,113690.0,1.4902617]
[1752170577643,0.026,113700.0,113690.0,1.4902617]
[1752170577839,0.1758451,113700.0,113690.0,1.4902617]
[1752170578040,0.1758451,113700.0,113690.0,1.4912617]
[1752170578550,0.1758451,113700.0,113690.0,1.8520617]
[1752170578750,0.1985451,113700.0,113690.0,1.8520617]
[1752170579454,0.1758451,113700.0,113690.0,1.8520617]
[1752170580042,0.1985451,113700.0,113690.0,1.8520617]
[1752170580241,0.02274,113700.0,113690.0,1.8520617]
[1752170580447,0.1985451,113700.0,113690.0,1.8520617]
[1752170580646,4e-05,113700.0,113690.0,1.8520617]
[1752170580957,0.1985451,113700.0,113690.0,1.8520617]
[1752170583455,0.1985451,113700.0,113690.0,1.5889112]
[1752170583652,0.02274,113700.0,113690.0,1.8520617]
[1752170584155,0.0227,113710.0,113700.0,0.1766151]
[1752170584355,0.0227,113710.0,113700.0,1.1248161]
[1752170585659,0.06985,113720.0,113710.0,0.1755996]
[1752170585866,0.03775,113720.0,113710.0,2.13343504]
[1752170586157,0.05877145,113720.0,113710.0,2.13343504]
[1752170586756,0.06177145,113720.0,113710.0,2.14239912]
[1752170587055,0.23754565,113720.0,113710.0,1.87028454]
[1752170587363,0.63158565,113720.0,113710.0,1.53583544]
[1752170587561,0.66486566,113720.0,113710.0,1.71162504]
[1752170588063,0.30406566,113720.0,113710.0,1.71062504]
[1752170588356,0.30318565,113720.0,113710.0,2.07142504]
[1752170589650,0.30318565,113720.0,113710.0,1.80827454]
[1752170589863,0.30318565,113720.0,113710.0,2.07142504]
[1752170590063,0.30418565,113720.0,113710.0,2.07142504]
[1752170593162,0.12841145,113720.0,113710.0,2.07142504]
[1752170594268,0.30418565,113720.0,113710.0,2.07142504]
[1752170598171,0.92813615,113720.0,113710.0,0.64460494]
[1752170599666,0.97634624,113720.0,113710.0,0.64456494]
[1752170599868,0.1908396,113710.0,113700.0,0.01529]
[1752170600071,0.56101155,113710.0,113700.0,0.01529]
[1752170600272,0.92273155,113710.0,113700.0,0.01529]
[1752170600771,1.54418546,113710.0,113700.0,0.01529]
[1752170600963,0.213586,113680.0,113670.0,1.93130396]
[1752170601168,0.23460745,113680.0,113670.0,2.19694396]
[1752170601473,0.29710745,113680.0,113670.0,2.19694396]
[1752170601665,0.29710745,113680.0,113670.0,2.55774396]
[1752170601866,0.29710745,113680.0,113670.0,2.96908228]
[1752170602670,0.25105745,113680.0,113670.0,2.55774396]
[1752170602979,0.25105745,113680.0,113670.0,3.03358228]
[1752170603168,0.25105745,113680.0,113670.0,3.04226673]
[1752170603475,0.25105745,113680.0,113670.0,3.04926673]
[1752170603476,0.26610745,113680.0,113670.0,3.04926673]
[1752170603669,0.26610745,113680.0,113670.0,2.60472841]
[1752170603877,0.29710745,113680.0,113670.0,1.1988323]
[1752170604071,0.29710745,113680.0,113670.0,0.56374785]
[1752170604266,0.29794745,113680.0,113670.0,1.19014785]
[1752170605075,0.29794745,113680.0,113670.0,1.60148617]
[1752170605263,0.29710745,113680.0,113670.0,1.60148617]
[1752170605872,0.25105745,113680.0,113670.0,1.60148617]
[1752170606076,0.23460745,113680.0,113670.0,1.66478617]
[1752170607476,0.04372145,113680.0,113670.0,1.6736018]
[1752170607667,0.02102145,113680.0,113670.0,1.6736018]
[1752170607867,0.35821756,113690.0,113680.0,0.175836]
[1752170608066,0.35905756,113690.0,113680.0,0.98067432]
[1752170609370,0.35910455,113690.0,113680.0,0.98067432]
[1752170610576,0.35910455,113690.0,113680.0,0.98367432]
[1752170611877,0.35910455,113690.0,113680.0,0.98567432]
[1752170612975,0.23787765,113690.0,113680.0,0.98567432]
[1752170613177,0.23703765,113690.0,113680.0,1.01747432]
[1752170620693,0.23703765,113690.0,113680.0,0.0695]
[1752170620886,0.26953765,113690.0,113680.0,0.005]
[1752170621089,0.66173765,113690.0,113680.0,0.005]
[1752170621288,0.66173765,113690.0,113680.0,0.8069962]
[1752170621289,0.92583704,113690.0,113680.0,0.8069962]
[1752170622888,0.66261766,113690.0,113680.0,0.8069962]
[1752170623487,0.66261766,113690.0,113680.0,1.07021558]
[1752170623682,0.70998775,113690.0,113680.0,0.44405558]
[1752170623987,0.70998775,113690.0,113680.0,1.07017558]
[1752170624593,0.70998775,113690.0,113680.0,1.07013558]
[1752170624995,0.70998775,113690.0,113680.0,0.8069162]
[1752170625187,0.70998775,113690.0,113680.0,1.07013558]
[1752170626391,0.34918775,113690.0,113680.0,1.07013558]
[1752170627090,0.34918775,113690.0,113680.0,0.8069162]
[1752170627298,0.34918775,113690.0,113680.0,1.07013558]
[1752170627796,0.66261766,113690.0,113680.0,0.44405558]
[1752170627996,0.66261766,113690.0,113680.0,0.005]
[1752170628293,0.66261766,113690.0,113680.0,0.631]
[1752170628294,0.97320713,113690.0,113680.0,0.631]
[1752170629388,0.70998775,113690.0,113680.0,0.631]
[1752170629585,0.34918775,113690.0,113680.0,0.44405558]
[1752170629989,0.27041766,113690.0,113680.0,0.44405558]
[1752170630191,0.26953765,113690.0,113680.0,0.47505558]
[1752170630692,0.31690774,113690.0,113680.0,0.47505558]
[1752170630897,0.31774774,113690.0,113680.0,0.47505558]
[1752170631097,0.31774774,113690.0,113680.0,0.2118362]
[1752170631295,0.31774774,113690.0,113680.0,0.47505558]
[1752170631495,0.31774774,113690.0,113680.0,0.50535558]
[1752170632303,0.35014774,113690.0,113680.0,0.44405558]
[1752170633994,0.35014774,113690.0,113680.0,0.1808362]
[1752170634205,0.35014774,113690.0,113680.0,0.44405558]
[1752170636903,0.35014774,113690.0,113680.0,0.005]
[1752170637103,0.97416712,113690.0,113680.0,0.005]
[1752170638406,0.92679703,113690.0,113680.0,0.005]
[1752170638607,0.97426427,113690.0,113680.0,0.005]
[1752170638803,0.92679703,113690.0,113680.0,0.005]
[1752170639005,0.97426345,113690.0,113680.0,0.005]
[1752170639805,0.97426345,113690.0,113680.0,0.002]
[1752170640013,0.97626345,113690.0,113680.0,0.002]
[1752170640313,0.215256,113680.0,113670.0,0.6274794]
[1752170640503,0.70705987,113680.0,113670.0,0.6274794]
[1752170641013,0.70705987,113680.0,113670.0,0.8033308]
[1752170641414,0.70805987,113680.0,113670.0,0.8033308]
[1752170641615,0.70805987,113680.0,113670.0,1.06655018]
[1752170642219,0.70889987,113680.0,113670.0,1.06655018]
[1752170642408,0.66143315,113680.0,113670.0,1.06655018]
[1752170642805,0.66143315,113680.0,113670.0,0.8033308]
[1752170643011,0.30063315,113680.0,113670.0,1.06655018]
[1752170643209,0.23873315,113680.0,113670.0,1.72266956]
[1752170643413,0.23873315,113680.0,113670.0,1.75516956]
[1752170643414,0.23789315,113680.0,113670.0,1.75516956]
[1752170643615,0.04642715,113680.0,113670.0,1.75516956]
[1752170643825,0.22226315,113680.0,113670.0,1.77378218]
[1752170644820,0.22226315,113680.0,113670.0,1.77478218]
[1752170645020,0.22230315,113680.0,113670.0,1.24834342]
[1752170645327,0.23793315,113680.0,113670.0,1.5115628]
[1752170645918,0.06209715,113680.0,113670.0,1.5115628]
[1752170646117,0.06209715,113680.0,113670.0,1.77478218]
[1752170646118,0.22230315,113680.0,113670.0,1.77478218]
[1752170646420,0.22130315,113680.0,113670.0,1.77878218]
[1752170647420,0.22130315,113680.0,113670.0,1.5155628]
[1752170649119,0.22130315,113680.0,113670.0,1.25234342]
[1752170649322,0.199666,113680.0,113670.0,1.5155628]
[1752170649516,0.06929929,113680.0,113670.0,1.77878218]
[1752170649718,0.19766857,113680.0,113670.0,1.77878218]
[1752170650220,0.04562257,113680.0,113670.0,1.77878218]
[1752170650620,0.02183257,113680.0,113670.0,1.77878218]
[1752170651916,0.09308929,113680.0,113670.0,1.77878218]
[1752170654220,0.26892529,113680.0,113670.0,1.77878218]
[1752170654520,0.22145857,113680.0,113670.0,1.77846218]
[1752170654725,0.26892529,113680.0,113670.0,1.5152428]
[1752170654924,0.28455529,113680.0,113670.0,1.25202342]
[1752170655113,0.28455529,113680.0,113670.0,1.5152428]
[1752170656621,0.28455529,113680.0,113670.0,1.24702342]
[1752170656817,0.28455529,113680.0,113670.0,1.5122428]
[1752170657618,0.28455529,113680.0,113670.0,0.62362342]
[1752170657828,0.28455529,113680.0,113670.0,1.5121628]
[1752170658017,0.28455529,113680.0,113670.0,0.8868428]
[1752170658215,0.28455529,113680.0,113670.0,1.5121628]
[1752170658415,0.31745529,113680.0,113670.0,1.5121628]
[1752170659428,0.26998857,113680.0,113670.0,1.5111628]
[1752170659621,0.27098857,113680.0,113670.0,0.8848428]
[1752170659819,0.27098857,113680.0,113670.0,0.5240428]
[1752170660014,0.56580795,113680.0,113670.0,0.85460342]
[1752170660331,0.30158857,113680.0,113670.0,0.82350342]
[1752170660526,0.30242857,113680.0,113670.0,0.82350342]
[1752170660716,0.30242857,113680.0,113670.0,0.82250342]
[1752170660915,0.30342857,113680.0,113670.0,0.82250342]
[1752170661127,0.35089529,113680.0,113670.0,0.1786108]
[1752170661326,0.30342857,113680.0,113670.0,0.8038908]
[1752170661528,0.30342857,113680.0,113670.0,0.8028908]
[1752170662724,0.37310047,113680.0,113670.0,0.8028908]
[1752170663923,0.37310047,113680.0,113670.0,1.06611018]
[1752170664331,0.37310047,113680.0,113670.0,0.8028908]
[1752170665229,0.37310047,113680.0,113670.0,0.8028108]
[1752170665421,0.37310047,113680.0,113670.0,1.06603018]
[1752170665722,0.37310047,113680.0,113670.0,0.1776108]
[1752170665927,0.37310047,113680.0,113670.0,1.06599018]
[1752170667322,0.37310047,113680.0,113670.0,0.8027708]
[1752170667524,0.37310047,113680.0,113670.0,1.06599018]
[1752170668125,0.37310047,113680.0,113670.0,0.8027708]
[1752170668527,0.37310047,113680.0,113670.0,1.06599018]
[1752170668923,0.38310047,113680.0,113670.0,1.06599018]
[1752170669128,0.38310047,113680.0,113670.0,0.8027708]
[1752170669328,0.38310047,113680.0,113670.0,1.06599018]
[1752170669827,0.38310047,113680.0,113670.0,0.44083018]
[1752170670128,0.2159424,113650.0,113640.0,0.53845777]
[1752170670334,0.23773497,113650.0,113640.0,0.44087715]
[1752170670525,0.23773497,113650.0,113640.0,2.31505653]
[1752170670725,0.23773497,113650.0,113640.0,2.37805653]
[1752170670928,0.23773497,113650.0,113640.0,1.75403715]
[1752170671227,0.23773497,113650.0,113640.0,1.49081777]
[1752170671426,0.63003497,113650.0,113640.0,1.31491987]
[1752170671629,0.63003497,113650.0,113640.0,0.00175987]
[1752170671630,0.89325435,113650.0,113640.0,0.00175987]
[1752170671825,0.89409435,113650.0,113640.0,0.00175987]
[1752170672130,1.07007835,113650.0,113640.0,0.00275987]
[1752170672429,1.07007835,113650.0,113640.0,0.00575987]
[1752170672626,0.89409435,113650.0,113640.0,0.00575987]
[1752170672827,0.89409435,113650.0,113640.0,0.00475987]
[1752170673327,0.66327497,113650.0,113640.0,0.00175987]
[1752170673722,0.30247497,113650.0,113640.0,0.44087715]
[1752170673922,0.30547497,113650.0,113640.0,0.26497925]
[1752170674329,0.30547497,113650.0,113640.0,0.00175987]
[1752170674524,0.30747497,113650.0,113640.0,0.00175987]
[1752170675126,0.35294169,113650.0,113640.0,0.00175987]
[1752170675429,0.97696107,113650.0,113640.0,0.00175987]
[1752170675831,1.15294507,113650.0,113640.0,0.00175987]
[1752170676520,0.97706267,113650.0,113630.0,0.00176002]
[1752170676722,1.52769728,113640.0,113630.0,0.00176002]
[1752170677029,1.55036986,113640.0,113630.0,0.00176002]
[1752170678528,0.2159889,113620.0,113610.0,1.22435293]
[1752170678728,0.23778147,113620.0,113610.0,1.32435293]
[1752170678930,0.30198147,113620.0,113610.0,1.32435293]
[1752170679128,0.30198147,113620.0,113610.0,1.28036693]
[1752170679330,0.30198147,113620.0,113610.0,1.2618623]
[1752170679529,0.56520085,113620.0,113610.0,0.4618]
[1752170679732,0.92684085,113620.0,113610.0,0.2769444]
[1752170679928,0.66362147,113620.0,113610.0,0.1769444]
[1752170680234,0.66362147,113620.0,113610.0,0.001]
[1752170680936,0.92684085,113620.0,113610.0,0.001]
[1752170681634,1.04352491,113620.0,113610.0,0.001]
[1752170681841,1.04352491,113620.0,113610.0,0.002]
[1752170682541,0.1914744,113610.0,113600.0,0.00176049]
[1752170682733,0.60576697,113610.0,113600.0,0.00176049]
[1752170682935,0.30203697,113610.0,113600.0,0.44093967]
[1752170683240,0.22310697,113610.0,113600.0,0.50293967]
[1752170683441,0.22226697,113610.0,113600.0,0.86373967]
[1752170683736,0.04632257,113610.0,113600.0,0.86373967]
[1752170683935,0.2159734,113630.0,113620.0,0.1759289]
[1752170684140,0.00084,113630.0,113620.0,2.05026828]
[1752170684337,0.1759134,113630.0,113620.0,2.08096828]
[1752170684641,0.3039235,113640.0,113630.0,0.1759134]
[1752170684830,0.3047635,113640.0,113630.0,0.46983278]
[1752170685032,0.2607867,113640.0,113630.0,0.83063278]
[1752170685228,0.1914434,113630.0,113620.0,2.14121768]
[1752170685439,0.2159734,113630.0,113620.0,1.5039187]
[1752170685635,0.2159734,113630.0,113620.0,1.5009187]
[1752170685829,0.2159734,113630.0,113620.0,1.5029187]
[1752170686734,0.47919278,113630.0,113620.0,1.5029187]
[1752170687041,0.2460734,113630.0,113620.0,0.8337799]
[1752170687244,0.2762734,113630.0,113620.0,0.8337799]
[1752170687736,0.2762734,113630.0,113620.0,0.8327799]
[1752170687939,0.02453,113630.0,113620.0,1.63892486]
[1752170688143,0.3039245,113640.0,113630.0,0.1759134]
[1752170688329,0.3039245,113640.0,113630.0,0.65115836]
[1752170688737,0.2599467,113640.0,113630.0,1.01195836]
[1752170688937,0.04006,113640.0,113630.0,1.01195836]
[1752170689146,0.2159579,113640.0,113630.0,1.01195836]
[1752170689539,0.2004279,113640.0,113630.0,1.01195836]
[1752170689935,0.2014279,113640.0,113630.0,1.01195836]
[1752170690141,0.02553,113640.0,113630.0,1.01195836]
[1752170690348,0.2014279,113640.0,113630.0,1.01195836]
[1752170690544,0.2034279,113640.0,113630.0,1.02076138]
[1752170690843,0.02753,113640.0,113630.0,1.02076138]
[1752170691039,0.02553,113640.0,113630.0,1.02076138]
[1752170691344,0.2004279,113640.0,113630.0,1.02276138]
[1752170692447,0.02453,113640.0,113630.0,1.02276138]
[1752170692640,0.2004279,113640.0,113630.0,1.02276138]
[1752170692843,0.08752672,113650.0,113640.0,0.1758979]
[1752170693042,0.28283322,113660.0,113650.0,0.1758824]
[1752170693245,0.35133212,113660.0,113650.0,0.97862736]
[1752170693446,0.35133212,113660.0,113650.0,1.01152736]
[1752170693642,0.35217212,113660.0,113650.0,0.5997824]
[1752170694548,0.35417212,113660.0,113650.0,0.5997824]
[1752170695148,0.35417212,113660.0,113650.0,0.2389824]
[1752170695344,0.3057054,113660.0,113650.0,0.2389824]
[1752170695545,0.35293673,113660.0,113650.0,0.2389824]
[1752170695945,0.32739735,113660.0,113650.0,0.2389824]
[1752170696141,0.32639735,113660.0,113650.0,0.2389824]
[1752170697250,0.37364321,113660.0,113650.0,0.2389824]
[1752170698545,0.40454321,113660.0,113650.0,0.5997824]
[1752170698856,0.24564591,113660.0,113650.0,1.01152736]
[1752170699045,0.24480591,113660.0,113650.0,1.01152736]
[1752170699246,0.26760591,113660.0,113650.0,1.01152736]
[1752170700546,0.26760591,113660.0,113650.0,1.01452736]
[1752170701057,0.06893781,113660.0,113650.0,1.01452736]
[1752170701352,0.24480451,113660.0,113650.0,1.01652736]
[1752170701555,0.19755865,113660.0,113650.0,1.01652736]
[1752170701754,0.22035865,113660.0,113650.0,1.01652736]
[1752170703051,0.22035865,113660.0,113650.0,1.64144736]
[1752170703452,0.23595865,113660.0,113650.0,0.3987]
[1752170703758,0.1758977,113640.0,113630.0,0.0184902]
[1752170703951,1.05582374,113640.0,113630.0,0.0184902]
[1752170704151,1.03987461,113640.0,113630.0,0.0184902]
[1752170704343,1.13478576,113640.0,113630.0,0.0184902]
[1752170704952,1.1437242,113640.0,113630.0,0.0184902]
[1752170705359,1.08051305,113640.0,113630.0,0.0184902]
[1752170705746,0.1915132,113630.0,113620.0,0.8887658]
[1752170705947,0.34530387,113630.0,113620.0,0.8887658]
[1752170706260,0.34614387,113630.0,113620.0,0.8887658]
[1752170707549,0.34614387,113630.0,113620.0,0.8907658]
[1752170708850,0.34614387,113630.0,113620.0,0.8927658]
[1752170709352,0.34624387,113630.0,113620.0,0.8927658]
[1752170710259,0.34624387,113630.0,113620.0,0.8487838]
[1752170710654,0.34624387,113630.0,113620.0,0.5847038]
[1752170710861,0.02263195,113630.0,113620.0,1.62132876]
[1752170711051,0.19770515,113630.0,113620.0,1.68472876]
[1752170711251,0.04459195,113630.0,113620.0,1.68472876]
[1752170711656,0.22050485,113630.0,113620.0,1.68472876]
[1752170711851,0.04459195,113630.0,113620.0,1.68472876]
[1752170712060,0.02179195,113630.0,113620.0,1.78472876]
[1752170712763,0.19770485,113630.0,113620.0,1.68472876]
[1752170713054,0.22050485,113630.0,113620.0,1.68472876]
[1752170713247,0.22050485,113630.0,113620.0,1.05984876]
[1752170713447,0.22050485,113630.0,113620.0,1.2729438]
[1752170713656,0.22050485,113630.0,113620.0,1.68468876]
[1752170715861,0.04459195,113630.0,113620.0,1.68468876]
[1752170716656,0.22050485,113630.0,113620.0,1.68468876]
[1752170717062,0.04459195,113630.0,113620.0,1.68468876]
[1752170718156,0.02179195,113630.0,113620.0,1.68468876]
[1752170718359,0.04739872,113640.0,113630.0,0.1759129]
[1752170718552,0.0001,113640.0,113630.0,1.01365786]
[1752170719259,0.0001,113640.0,113630.0,1.11365786]
[1752170719660,0.0001,113640.0,113630.0,1.11565786]
[1752170720458,0.0001,113640.0,113630.0,1.01565786]
[1752170722258,0.0001,113640.0,113630.0,1.01765786]
[1752170724765,0.0001,113640.0,113630.0,1.11765786]
[1752170726168,0.41341752,113660.0,113650.0,0.175882]
[1752170726361,0.41429753,113660.0,113650.0,1.57298696]
[1752170726562,0.41429753,113660.0,113650.0,1.60478696]
[1752170727262,0.41429753,113660.0,113650.0,1.63628696]
[1752170727263,0.36899881,113660.0,113650.0,1.63628696]
[1752170727467,0.3691188,113660.0,113650.0,1.63628696]
[1752170727667,0.3251484,113660.0,113650.0,1.63628696]